[Event "*** Titled Tuesday Blitz"]
[Site "Chess.com"]
[Date "2020.11.24"]
[Round "7"]
[White "RaneshRatnesan"]
[Black "03revilo"]
[Result "1-0"]
[WhiteElo "2134"]
[BlackElo "2321"]
[TimeControl "180+1"]
[EndTime "11:32:56 PST"]
[Termination "RaneshRatnesan won by checkmate"]

1. d4 {[%clk 0:02:48.1]} 1... d6 {[%clk 0:02:56.2]} 2. Nf3 {[%clk 0:02:45.3]}
2... Nf6 {[%clk 0:02:52.3]} 3. g3 {[%clk 0:02:44.5]} 3... Nbd7 {[%clk
0:02:49.9]} 4. c4 {[%clk 0:02:42.5]} 4... g6 {[%clk 0:02:50.8]} 5. Nc3 {[%clk
0:02:42.2]} 5... Bg7 {[%clk 0:02:51.6]} 6. Bg2 {[%clk 0:02:42.8]} 6... O-O
{[%clk 0:02:51.8]} 7. O-O {[%clk 0:02:43.3]} 7... Re8 {[%clk 0:02:49.6]} 8. e4
{[%clk 0:02:43.4]} 8... e5 {[%clk 0:02:50.2]} 9. h3 {[%clk 0:02:43.9]} 9... c6
{[%clk 0:02:48.8]} 10. Re1 {[%clk 0:02:42.6]} 10... exd4 {[%clk 0:02:47.5]} 11.
Nxd4 {[%clk 0:02:42.1]} 11... a6 {[%clk 0:02:46.5]} 12. Be3 {[%clk 0:02:37.8]}
12... Nc5 {[%clk 0:02:44.7]} 13. Qc2 {[%clk 0:02:35.1]} 13... Ne6 {[%clk
0:02:39]} 14. Rad1 {[%clk 0:02:29.6]} 14... Nxd4 {[%clk 0:02:36.6]} 15. Bxd4
{[%clk 0:02:30.5]} 15... Be6 {[%clk 0:02:36.5]} 16. c5 {[%clk 0:02:28.1]} 16...
dxc5 {[%clk 0:02:34.9]} 17. Bxc5 {[%clk 0:02:29]} 17... Qa5 {[%clk 0:02:28.4]}
18. b4 {[%clk 0:02:28.5]} 18... Qc7 {[%clk 0:02:17.4]} 19. e5 {[%clk 0:02:21.6]}
19... Nd5 {[%clk 0:02:14]} 20. Bd6 {[%clk 0:02:15.6]} 20... Qc8 {[%clk
0:01:52.4]} 21. Nxd5 {[%clk 0:02:07.7]} 21... cxd5 {[%clk 0:01:52]} 22. Qxc8
{[%clk 0:02:03.1]} 22... Raxc8 {[%clk 0:01:52.5]} 23. Bxd5 {[%clk 0:02:03]}
23... Bxd5 {[%clk 0:01:52.3]} 24. Rxd5 {[%clk 0:02:03.9]} 24... Rc2 {[%clk
0:01:52.8]} 25. a4 {[%clk 0:02:00.2]} 25... Rc4 {[%clk 0:01:52.4]} 26. a5 {[%clk
0:01:57.6]} 26... Rc6 {[%clk 0:01:45.3]} 27. Red1 {[%clk 0:01:52]} 27... h5
{[%clk 0:01:42]} 28. Kg2 {[%clk 0:01:46.2]} 28... Rc4 {[%clk 0:01:35.6]} 29. Kf3
{[%clk 0:01:35.1]} 29... h4 {[%clk 0:01:31]} 30. g4 {[%clk 0:01:28.3]} 30...
Rc3+ {[%clk 0:01:30.8]} 31. R1d3 {[%clk 0:01:23]} 31... Rxd3+ {[%clk 0:01:23.3]}
32. Rxd3 {[%clk 0:01:23.9]} 32... Bxe5 {[%clk 0:01:23.1]} 33. Re3 {[%clk
0:01:24.1]} 33... f6 {[%clk 0:01:23.1]} 34. Bxe5 {[%clk 0:01:24.3]} 34... fxe5
{[%clk 0:01:23.3]} 35. Ke4 {[%clk 0:01:24]} 35... Kf7 {[%clk 0:01:23.7]} 36. Kd5
{[%clk 0:01:22.4]} 36... Kf6 {[%clk 0:01:23.7]} 37. Rf3+ {[%clk 0:01:21.9]}
37... Kg5 {[%clk 0:01:23.6]} 38. Kd6 {[%clk 0:01:13.4]} 38... e4 {[%clk
0:01:21.6]} 39. Rf7 {[%clk 0:01:12]} 39... e3 {[%clk 0:01:17.6]} 40. f4+ {[%clk
0:01:08.2]} 40... Kh6 {[%clk 0:01:15.9]} 41. g5+ {[%clk 0:01:08.8]} 41... Kh5
{[%clk 0:01:16]} 42. Rh7# {[%clk 0:01:09.5]} 1-0

[Event "*** Titled Tuesday Blitz"]
[Site "Chess.com"]
[Date "2020.11.24"]
[Round "7"]
[White "Margarita2907"]
[Black "kkpanu9"]
[Result "0-1"]
[WhiteElo "2222"]
[BlackElo "2069"]
[TimeControl "180+1"]
[EndTime "11:33:08 PST"]
[Termination "kkpanu9 won by checkmate"]

1. e4 {[%clk 0:03:00.9]} 1... c5 {[%clk 0:02:59.9]} 2. Nf3 {[%clk 0:03:01.3]}
2... d6 {[%clk 0:03:00.1]} 3. d4 {[%clk 0:03:00.2]} 3... cxd4 {[%clk 0:03:01]}
4. Nxd4 {[%clk 0:03:00.6]} 4... Nf6 {[%clk 0:03:01.4]} 5. Nc3 {[%clk 0:02:58.8]}
5... g6 {[%clk 0:03:01.7]} 6. Be3 {[%clk 0:02:57.9]} 6... Bg7 {[%clk 0:03:02]}
7. f3 {[%clk 0:02:56.8]} 7... O-O {[%clk 0:03:02.1]} 8. Qd2 {[%clk 0:02:56.9]}
8... Nc6 {[%clk 0:03:02.4]} 9. Bc4 {[%clk 0:02:56.7]} 9... Bd7 {[%clk
0:03:02.2]} 10. h4 {[%clk 0:02:55.7]} 10... Rc8 {[%clk 0:02:59.1]} 11. Bb3
{[%clk 0:02:54.6]} 11... h5 {[%clk 0:02:58.4]} 12. O-O-O {[%clk 0:02:53.8]}
12... Ne5 {[%clk 0:02:57.4]} 13. Kb1 {[%clk 0:02:51.2]} 13... Nc4 {[%clk
0:02:51.9]} 14. Bxc4 {[%clk 0:02:50.4]} 14... Rxc4 {[%clk 0:02:52.8]} 15. Nb3
{[%clk 0:02:42.6]} 15... Qc7 {[%clk 0:02:22.8]} 16. Nd5 {[%clk 0:02:29.8]} 16...
Nxd5 {[%clk 0:02:19.7]} 17. exd5 {[%clk 0:02:30.7]} 17... Bf5 {[%clk 0:02:14.3]}
18. Rc1 {[%clk 0:02:18.8]} 18... Rc8 {[%clk 0:02:13.4]} 19. Na1 {[%clk
0:02:12.3]} 19... Ra4 {[%clk 0:01:36.6]} 20. b3 {[%clk 0:02:07.5]} 20... Rxa2
{[%clk 0:01:09.3]} 21. Kxa2 {[%clk 0:02:03.7]} 21... Bc3 {[%clk 0:01:08.5]} 22.
Qd4 {[%clk 0:01:45.4]} 22... Bxd4 {[%clk 0:01:07.4]} 23. Bxd4 {[%clk 0:01:44.9]}
23... Qa5+ {[%clk 0:01:01.7]} 24. Kb2 {[%clk 0:01:44.2]} 24... Qxd5 {[%clk
0:00:53.6]} 25. Rhd1 {[%clk 0:01:43.8]} 25... Qa5 {[%clk 0:00:49.5]} 26. c4
{[%clk 0:01:36.8]} 26... b5 {[%clk 0:00:39.7]} 27. c5 {[%clk 0:01:22.7]} 27...
b4 {[%clk 0:00:26]} 28. cxd6 {[%clk 0:01:19.7]} 28... Qa3# {[%clk 0:00:25.2]}
0-1

[Event "*** Titled Tuesday Blitz"]
[Site "Chess.com"]
[Date "2020.11.24"]
[Round "7"]
[White "enriquebutti"]
[Black "kinga2008"]
[Result "1-0"]
[WhiteElo "1973"]
[BlackElo "2167"]
[TimeControl "180+1"]
[EndTime "11:33:10 PST"]
[Termination "enriquebutti won by resignation"]

1. d4 {[%clk 0:02:58.9]} 1... c5 {[%clk 0:03:00.9]} 2. e3 {[%clk 0:02:58.5]}
2... cxd4 {[%clk 0:02:55.8]} 3. exd4 {[%clk 0:02:58.2]} 3... g6 {[%clk
0:02:56.7]} 4. Nf3 {[%clk 0:02:57.4]} 4... Bg7 {[%clk 0:02:57.6]} 5. Bd3 {[%clk
0:02:56.2]} 5... d6 {[%clk 0:02:45.6]} 6. c3 {[%clk 0:02:54.2]} 6... Nc6 {[%clk
0:02:39.6]} 7. O-O {[%clk 0:02:53.2]} 7... e5 {[%clk 0:02:32.6]} 8. Re1 {[%clk
0:02:52.2]} 8... Nge7 {[%clk 0:02:24.8]} 9. dxe5 {[%clk 0:02:49.1]} 9... dxe5
{[%clk 0:02:20.3]} 10. Na3 {[%clk 0:02:48.4]} 10... O-O {[%clk 0:02:15.2]} 11.
Bc4 {[%clk 0:02:44.5]} 11... Bg4 {[%clk 0:02:10.3]} 12. Qxd8 {[%clk 0:02:41.4]}
12... Raxd8 {[%clk 0:02:08]} 13. Ng5 {[%clk 0:02:42.3]} 13... Nd5 {[%clk
0:01:55.2]} 14. h3 {[%clk 0:02:37.9]} 14... Be6 {[%clk 0:01:47.3]} 15. Nxe6
{[%clk 0:02:36.6]} 15... fxe6 {[%clk 0:01:46.8]} 16. Be3 {[%clk 0:02:35.5]}
16... a6 {[%clk 0:01:36.6]} 17. Rad1 {[%clk 0:02:34]} 17... Na5 {[%clk
0:01:30.9]} 18. Bxd5 {[%clk 0:02:28.3]} 18... exd5 {[%clk 0:01:22]} 19. Bb6
{[%clk 0:02:27.5]} 19... Nc6 {[%clk 0:01:17.8]} 20. Bxd8 {[%clk 0:02:26.7]}
20... Rxd8 {[%clk 0:01:14.3]} 21. Nc2 {[%clk 0:02:25.8]} 21... d4 {[%clk
0:01:10.8]} 22. cxd4 {[%clk 0:02:25.2]} 22... exd4 {[%clk 0:01:05.3]} 23. Re2
{[%clk 0:02:19.1]} 23... Kf7 {[%clk 0:00:50.7]} 24. Red2 {[%clk 0:02:15.4]}
24... Bh6 {[%clk 0:00:45.1]} 25. Rd3 {[%clk 0:02:14.4]} 25... Bg7 {[%clk
0:00:41.6]} 26. Rf3+ {[%clk 0:02:13.5]} 26... Ke6 {[%clk 0:00:35.2]} 27. Re1+
{[%clk 0:02:13]} 27... Ne5 {[%clk 0:00:24.5]} 28. Rb3 {[%clk 0:02:10.8]} 28...
Kf5 {[%clk 0:00:12.1]} 29. Rxb7 {[%clk 0:02:05.9]} 29... Nd3 {[%clk 0:00:09.5]}
30. Rxg7 {[%clk 0:02:03.6]} 30... Nxe1 {[%clk 0:00:08.7]} 31. Nxe1 {[%clk
0:02:03]} 31... Re8 {[%clk 0:00:07.1]} 32. Nf3 {[%clk 0:02:00.6]} 32... d3
{[%clk 0:00:06.4]} 33. Rd7 {[%clk 0:01:59.8]} 33... Ke4 {[%clk 0:00:05]} 34.
Rd4+ {[%clk 0:01:59.1]} 1-0

[Event "*** Titled Tuesday Blitz"]
[Site "Chess.com"]
[Date "2020.11.24"]
[Round "7"]
[White "queen_iryna"]
[Black "ExtremeLearner"]
[Result "1-0"]
[WhiteElo "2270"]
[BlackElo "2371"]
[TimeControl "180+1"]
[EndTime "11:33:11 PST"]
[Termination "queen_iryna won by resignation"]

1. e4 {[%clk 0:03:00.9]} 1... c6 {[%clk 0:03:00.1]} 2. d4 {[%clk 0:03:00.2]}
2... d5 {[%clk 0:03:01]} 3. Nc3 {[%clk 0:03:00.3]} 3... dxe4 {[%clk 0:02:59.1]}
4. Nxe4 {[%clk 0:03:01.2]} 4... Nf6 {[%clk 0:03:00]} 5. Nxf6+ {[%clk 0:03:00.5]}
5... exf6 {[%clk 0:03:00.9]} 6. c3 {[%clk 0:02:59.7]} 6... Bd6 {[%clk
0:02:59.3]} 7. Bd3 {[%clk 0:02:57.4]} 7... O-O {[%clk 0:02:58.6]} 8. Be3 {[%clk
0:02:56.9]} 8... Re8 {[%clk 0:02:51.4]} 9. Qc2 {[%clk 0:02:56.9]} 9... h5 {[%clk
0:02:48.4]} 10. Ne2 {[%clk 0:02:52.1]} 10... Nd7 {[%clk 0:02:45.2]} 11. Ng3
{[%clk 0:02:47.8]} 11... h4 {[%clk 0:02:35.9]} 12. Nf5 {[%clk 0:02:47]} 12...
Nf8 {[%clk 0:02:18.9]} 13. Nxh4 {[%clk 0:02:33.1]} 13... Bf4 {[%clk 0:02:12.1]}
14. O-O-O {[%clk 0:02:32.2]} 14... Bxe3+ {[%clk 0:02:06.1]} 15. fxe3 {[%clk
0:02:33.1]} 15... Rxe3 {[%clk 0:02:06.4]} 16. Nf5 {[%clk 0:02:31.1]} 16... Re8
{[%clk 0:02:01.4]} 17. h4 {[%clk 0:02:29.2]} 17... Qa5 {[%clk 0:02:00]} 18. Kb1
{[%clk 0:02:27.2]} 18... Be6 {[%clk 0:01:57.4]} 19. b3 {[%clk 0:02:19.7]} 19...
Rad8 {[%clk 0:01:55.4]} 20. h5 {[%clk 0:02:13.6]} 20... Rd5 {[%clk 0:01:54.7]}
21. Ne3 {[%clk 0:02:08]} 21... Rxh5 {[%clk 0:01:53.6]} 22. d5 {[%clk 0:01:37.3]}
22... Rxh1 {[%clk 0:00:46.9]} 23. Rxh1 {[%clk 0:01:38.2]} 23... Bxd5 {[%clk
0:00:47.7]} 24. Bh7+ {[%clk 0:01:36.4]} 24... Nxh7 {[%clk 0:00:45.5]} 25. Qxh7+
{[%clk 0:01:37.3]} 25... Kf8 {[%clk 0:00:46.4]} 26. Qh8+ {[%clk 0:01:33.3]}
26... Ke7 {[%clk 0:00:44.9]} 27. Nxd5+ {[%clk 0:01:28.5]} 27... Qxd5 {[%clk
0:00:40.9]} 28. Re1+ {[%clk 0:01:28.4]} 28... Kd6 {[%clk 0:00:33.5]} 29. Qxe8
{[%clk 0:01:25.2]} 29... Qd3+ {[%clk 0:00:33.5]} 30. Kb2 {[%clk 0:01:25.1]}
30... Qd2+ {[%clk 0:00:33.2]} 31. Ka3 {[%clk 0:01:25.1]} 31... Kc5 {[%clk
0:00:29.5]} 32. Qe3+ {[%clk 0:01:23.1]} 1-0

[Event "*** Titled Tuesday Blitz"]
[Site "Chess.com"]
[Date "2020.11.24"]
[Round "7"]
[White "Witik"]
[Black "2346PL"]
[Result "1-0"]
[WhiteElo "2684"]
[BlackElo "2434"]
[TimeControl "180+1"]
[EndTime "11:33:12 PST"]
[Termination "Witik won by checkmate"]

1. e4 {[%clk 0:03:00.9]} 1... c5 {[%clk 0:03:00]} 2. d4 {[%clk 0:03:00.1]} 2...
cxd4 {[%clk 0:02:59.7]} 3. c3 {[%clk 0:03:00.6]} 3... dxc3 {[%clk 0:02:57.9]} 4.
Nxc3 {[%clk 0:03:01.5]} 4... d6 {[%clk 0:02:57.3]} 5. Nf3 {[%clk 0:03:01.5]}
5... Nc6 {[%clk 0:02:55.8]} 6. Bc4 {[%clk 0:03:01.5]} 6... e6 {[%clk 0:02:56.1]}
7. O-O {[%clk 0:03:00.3]} 7... Be7 {[%clk 0:02:55.6]} 8. Qe2 {[%clk 0:02:59]}
8... Nf6 {[%clk 0:02:54]} 9. Rd1 {[%clk 0:02:58.8]} 9... Qa5 {[%clk 0:02:47.3]}
10. Nb5 {[%clk 0:02:55.3]} 10... O-O {[%clk 0:02:42.6]} 11. Nxd6 {[%clk
0:02:51.2]} 11... Rd8 {[%clk 0:02:26.1]} 12. Bf4 {[%clk 0:02:10.5]} 12... e5
{[%clk 0:02:14.5]} 13. Nxf7 {[%clk 0:01:50]} 13... Rxd1+ {[%clk 0:02:08.2]} 14.
Rxd1 {[%clk 0:01:50.9]} 14... exf4 {[%clk 0:02:06.3]} 15. e5 {[%clk 0:01:50]}
15... Kf8 {[%clk 0:01:42.5]} 16. exf6 {[%clk 0:01:42.9]} 16... Bxf6 {[%clk
0:01:43.4]} 17. Nd6 {[%clk 0:01:21.2]} 17... Bg4 {[%clk 0:01:35.4]} 18. h3
{[%clk 0:01:13.2]} 18... Bd7 {[%clk 0:01:17.6]} 19. Nxb7 {[%clk 0:00:53.3]}
19... Qc7 {[%clk 0:01:17.8]} 20. Nc5 {[%clk 0:00:52.7]} 20... Bf5 {[%clk
0:01:17.1]} 21. Ne6+ {[%clk 0:00:49.9]} 21... Bxe6 {[%clk 0:01:16.3]} 22. Qxe6
{[%clk 0:00:50.8]} 22... Re8 {[%clk 0:00:42.7]} 23. Qg8+ {[%clk 0:00:47]} 23...
Ke7 {[%clk 0:00:42.3]} 24. Qf7# {[%clk 0:00:45.2]} 1-0

[Event "*** Titled Tuesday Blitz"]
[Site "Chess.com"]
[Date "2020.11.24"]
[Round "7"]
[White "lacafi"]
[Black "WonderChampion"]
[Result "1-0"]
[WhiteElo "2204"]
[BlackElo "2034"]
[TimeControl "180+1"]
[EndTime "11:33:17 PST"]
[Termination "lacafi won by checkmate"]

1. d4 {[%clk 0:03:00.9]} 1... d5 {[%clk 0:02:57.8]} 2. Nf3 {[%clk 0:03:01.1]}
2... e6 {[%clk 0:02:55.4]} 3. e3 {[%clk 0:03:01.4]} 3... c5 {[%clk 0:02:55.2]}
4. c3 {[%clk 0:03:01.4]} 4... Nc6 {[%clk 0:02:54.6]} 5. Bd3 {[%clk 0:03:01.3]}
5... c4 {[%clk 0:02:40.7]} 6. Bc2 {[%clk 0:03:00.9]} 6... Nf6 {[%clk 0:02:39.4]}
7. Nbd2 {[%clk 0:03:00.5]} 7... Bd6 {[%clk 0:02:38.5]} 8. Qe2 {[%clk 0:03:01]}
8... O-O {[%clk 0:02:38.5]} 9. O-O {[%clk 0:03:01.5]} 9... e5 {[%clk 0:02:37.1]}
10. e4 {[%clk 0:03:01.3]} 10... dxe4 {[%clk 0:02:28.5]} 11. Nxe4 {[%clk
0:03:00.9]} 11... Nxe4 {[%clk 0:02:25.7]} 12. Qxe4 {[%clk 0:02:58]} 12... g6
{[%clk 0:02:14.5]} 13. dxe5 {[%clk 0:02:54.8]} 13... Be7 {[%clk 0:02:10.4]} 14.
Qxc4 {[%clk 0:02:52.9]} 14... Be6 {[%clk 0:02:07.9]} 15. Qe2 {[%clk 0:02:44.1]}
15... Qc7 {[%clk 0:02:00.4]} 16. h3 {[%clk 0:02:42.4]} 16... Na5 {[%clk
0:01:54.3]} 17. Re1 {[%clk 0:02:18.5]} 17... Rfd8 {[%clk 0:01:42.3]} 18. Bg5
{[%clk 0:02:02.4]} 18... Bxg5 {[%clk 0:01:37.6]} 19. Nxg5 {[%clk 0:02:02.1]}
19... Bc4 {[%clk 0:01:37.1]} 20. Qg4 {[%clk 0:02:00]} 20... Rd2 {[%clk
0:00:59.4]} 21. Rac1 {[%clk 0:01:33.8]} 21... Rad8 {[%clk 0:00:48.3]} 22. Qh4
{[%clk 0:01:31]} 22... h5 {[%clk 0:00:44.8]} 23. e6 {[%clk 0:01:31.5]} 23...
Bxe6 {[%clk 0:00:21.1]} 24. Nxe6 {[%clk 0:01:29.2]} 24... fxe6 {[%clk 0:00:22]}
25. Rxe6 {[%clk 0:01:25.2]} 25... Qc5 {[%clk 0:00:17.7]} 26. Rxg6+ {[%clk
0:01:20.9]} 26... Kf7 {[%clk 0:00:17.1]} 27. Qf6+ {[%clk 0:01:18.2]} 27... Ke8
{[%clk 0:00:16.9]} 28. Qe6+ {[%clk 0:01:16.5]} 28... Kf8 {[%clk 0:00:15.9]} 29.
Rg8# {[%clk 0:01:17.4]} 1-0

[Event "*** Titled Tuesday Blitz"]
[Site "Chess.com"]
[Date "2020.11.24"]
[Round "7"]
[White "SameerMujumdar"]
[Black "Ural_bogatyr"]
[Result "0-1"]
[WhiteElo "2301"]
[BlackElo "2411"]
[TimeControl "180+1"]
[EndTime "11:33:20 PST"]
[Termination "Ural_bogatyr won by resignation"]

1. e4 {[%clk 0:03:00.9]} 1... e5 {[%clk 0:03:00]} 2. f4 {[%clk 0:03:00]} 2... d5
{[%clk 0:02:59.8]} 3. exd5 {[%clk 0:02:57]} 3... exf4 {[%clk 0:03:00.2]} 4. Nf3
{[%clk 0:02:56.5]} 4... Nf6 {[%clk 0:03:00.6]} 5. d4 {[%clk 0:02:55.3]} 5...
Nxd5 {[%clk 0:03:00.4]} 6. c4 {[%clk 0:02:55.3]} 6... Ne3 {[%clk 0:03:00.1]} 7.
Bxe3 {[%clk 0:02:55.6]} 7... fxe3 {[%clk 0:03:01]} 8. Bd3 {[%clk 0:02:55.9]}
8... Bg4 {[%clk 0:02:54.2]} 9. O-O {[%clk 0:02:54.1]} 9... Nc6 {[%clk
0:02:48.7]} 10. d5 {[%clk 0:02:49.6]} 10... Ne5 {[%clk 0:02:46.4]} 11. Be2
{[%clk 0:02:49]} 11... Bxf3 {[%clk 0:02:46]} 12. Bxf3 {[%clk 0:02:47.5]} 12...
Nxc4 {[%clk 0:02:46]} 13. Qa4+ {[%clk 0:02:47.2]} 13... Qd7 {[%clk 0:02:41.3]}
14. Qxc4 {[%clk 0:02:46.5]} 14... Bd6 {[%clk 0:02:37.4]} 15. Nc3 {[%clk
0:02:43]} 15... O-O {[%clk 0:02:36.9]} 16. Rae1 {[%clk 0:02:42.2]} 16... Rae8
{[%clk 0:02:36]} 17. Qh4 {[%clk 0:02:38.8]} 17... f5 {[%clk 0:02:32.9]} 18. Kh1
{[%clk 0:02:16.1]} 18... Rf6 {[%clk 0:02:22.8]} 19. Qd4 {[%clk 0:01:56.4]} 19...
Rh6 {[%clk 0:02:18.6]} 20. h3 {[%clk 0:01:55.1]} 20... f4 {[%clk 0:02:10.2]} 21.
Ne4 {[%clk 0:01:53.8]} 21... Be5 {[%clk 0:02:07.5]} 22. Qc4 {[%clk 0:01:50.3]}
22... Kh8 {[%clk 0:02:00.6]} 23. Nc5 {[%clk 0:01:47.3]} 23... Qf5 {[%clk
0:01:41.6]} 24. Qe4 {[%clk 0:01:38.5]} 24... Rxh3+ {[%clk 0:01:30.9]} 25. gxh3
{[%clk 0:01:31.9]} 25... Qxh3+ {[%clk 0:01:31.8]} 26. Kg1 {[%clk 0:01:32.4]}
26... Qg3+ {[%clk 0:01:32.4]} 27. Bg2 {[%clk 0:01:31]} 27... f3 {[%clk
0:01:31.8]} 28. Rxf3 {[%clk 0:01:31.6]} 28... Qxe1+ {[%clk 0:01:29.4]} 29. Rf1
{[%clk 0:01:29.9]} 29... Qg3 {[%clk 0:01:23.1]} 30. Rf3 {[%clk 0:01:24.7]} 30...
Qh2+ {[%clk 0:01:02.8]} 31. Kf1 {[%clk 0:01:24.4]} 31... Qh5 {[%clk 0:01:03.4]}
32. Qxe3 {[%clk 0:01:14.1]} 32... Bd6 {[%clk 0:00:52.2]} 33. Ne6 {[%clk
0:01:13.8]} 33... Qxd5 {[%clk 0:00:47.8]} 34. Rf8+ {[%clk 0:01:13.4]} 34...
Rxf8+ {[%clk 0:00:47.9]} 35. Nxf8 {[%clk 0:01:11.5]} 35... Qf7+ {[%clk
0:00:44.8]} 0-1

[Event "*** Titled Tuesday Blitz"]
[Site "Chess.com"]
[Date "2020.11.24"]
[Round "7"]
[White "XDPS"]
[Black "IriBu"]
[Result "1-0"]
[WhiteElo "2700"]
[BlackElo "2506"]
[TimeControl "180+1"]
[EndTime "11:33:26 PST"]
[Termination "XDPS won by resignation"]

1. d4 {[%clk 0:03:00.9]} 1... Nf6 {[%clk 0:02:59.6]} 2. Bf4 {[%clk 0:03:01.2]}
2... e6 {[%clk 0:02:58.8]} 3. e3 {[%clk 0:03:01.4]} 3... d6 {[%clk 0:02:58.9]}
4. Nf3 {[%clk 0:03:01.4]} 4... b6 {[%clk 0:02:58.7]} 5. Be2 {[%clk 0:02:59.7]}
5... Bb7 {[%clk 0:02:59]} 6. O-O {[%clk 0:03:00.3]} 6... g6 {[%clk 0:02:58.9]}
7. h3 {[%clk 0:03:00.8]} 7... Bg7 {[%clk 0:02:59.2]} 8. Bh2 {[%clk 0:03:01]}
8... O-O {[%clk 0:02:59.4]} 9. a4 {[%clk 0:03:01.5]} 9... a5 {[%clk 0:02:59.3]}
10. Nbd2 {[%clk 0:03:02.1]} 10... Nbd7 {[%clk 0:02:56.6]} 11. c3 {[%clk
0:03:02.5]} 11... Qe7 {[%clk 0:02:56.9]} 12. Qc2 {[%clk 0:03:01.9]} 12... e5
{[%clk 0:02:57.1]} 13. Rfd1 {[%clk 0:03:02.3]} 13... Nd5 {[%clk 0:02:52.1]} 14.
Bb5 {[%clk 0:02:55.8]} 14... c6 {[%clk 0:02:45.7]} 15. Bf1 {[%clk 0:02:54.9]}
15... f5 {[%clk 0:02:43.1]} 16. e4 {[%clk 0:02:53.7]} 16... Nf4 {[%clk
0:02:42.4]} 17. dxe5 {[%clk 0:02:53.2]} 17... dxe5 {[%clk 0:02:41.5]} 18. Nc4
{[%clk 0:02:51.1]} 18... Rad8 {[%clk 0:02:14.5]} 19. exf5 {[%clk 0:02:08.1]}
19... gxf5 {[%clk 0:02:13.4]} 20. Bxf4 {[%clk 0:02:06.3]} 20... exf4 {[%clk
0:02:12.8]} 21. Nxb6 {[%clk 0:02:03.5]} 21... Nxb6 {[%clk 0:02:11.7]} 22. Qb3+
{[%clk 0:02:03.5]} 22... Nd5 {[%clk 0:02:11.7]} 23. Re1 {[%clk 0:01:49]} 23...
Qc7 {[%clk 0:02:10.6]} 24. Ng5 {[%clk 0:01:42.1]} 24... Bc8 {[%clk 0:02:08]} 25.
Bc4 {[%clk 0:01:27.6]} 25... h6 {[%clk 0:02:06.4]} 26. Ne6 {[%clk 0:01:23.8]}
26... Bxe6 {[%clk 0:02:05.7]} 27. Rxe6 {[%clk 0:01:24.7]} 27... Kh8 {[%clk
0:01:55.5]} 28. Rae1 {[%clk 0:01:25.1]} 28... Rd7 {[%clk 0:01:49.1]} 29. Qc2
{[%clk 0:01:03.2]} 29... Nb6 {[%clk 0:01:42]} 30. Bb3 {[%clk 0:01:00]} 30... c5
{[%clk 0:01:37.1]} 31. Qe2 {[%clk 0:00:56.4]} 31... c4 {[%clk 0:01:36.1]} 32.
Bc2 {[%clk 0:00:56.3]} 32... Nd5 {[%clk 0:01:31.1]} 33. Qh5 {[%clk 0:00:53.2]}
33... Re7 {[%clk 0:01:21.4]} 34. Bxf5 {[%clk 0:00:47.9]} 34... Rxe6 {[%clk
0:01:21.5]} 35. Rxe6 {[%clk 0:00:47.5]} 35... Qf7 {[%clk 0:01:20.2]} 36. Rxh6+
{[%clk 0:00:41.1]} 36... Bxh6 {[%clk 0:01:14.4]} 37. Qxh6+ {[%clk 0:00:41.2]}
37... Kg8 {[%clk 0:01:14.9]} 38. Be6 {[%clk 0:00:41.8]} 38... Nf6 {[%clk
0:01:11.9]} 39. Qg6+ {[%clk 0:00:40.8]} 1-0

[Event "*** Titled Tuesday Blitz"]
[Site "Chess.com"]
[Date "2020.11.24"]
[Round "7"]
[White "Oglob71"]
[Black "ChronicUnhappiness"]
[Result "1-0"]
[WhiteElo "2403"]
[BlackElo "2360"]
[TimeControl "180+1"]
[EndTime "11:33:27 PST"]
[Termination "Oglob71 won on time"]

1. d4 {[%clk 0:03:00.9]} 1... d5 {[%clk 0:02:56.5]} 2. Nf3 {[%clk 0:03:00.8]}
2... Nf6 {[%clk 0:02:55.3]} 3. c4 {[%clk 0:03:01.4]} 3... e6 {[%clk 0:02:55.1]}
4. Qc2 {[%clk 0:03:01.4]} 4... Nbd7 {[%clk 0:02:45.5]} 5. Bg5 {[%clk 0:03:00.5]}
5... h6 {[%clk 0:02:41.4]} 6. Bh4 {[%clk 0:02:59.9]} 6... c6 {[%clk 0:02:33.5]}
7. e3 {[%clk 0:02:58.2]} 7... Be7 {[%clk 0:02:33.2]} 8. Nc3 {[%clk 0:02:57.4]}
8... O-O {[%clk 0:02:32.5]} 9. cxd5 {[%clk 0:02:57]} 9... exd5 {[%clk
0:02:31.6]} 10. Bd3 {[%clk 0:02:56]} 10... Re8 {[%clk 0:02:31.1]} 11. h3 {[%clk
0:02:55.3]} 11... Ne4 {[%clk 0:02:17.6]} 12. Bxe7 {[%clk 0:02:54.9]} 12... Qxe7
{[%clk 0:02:17.1]} 13. Bxe4 {[%clk 0:02:55.5]} 13... dxe4 {[%clk 0:02:16.4]} 14.
Nd2 {[%clk 0:02:56.1]} 14... f5 {[%clk 0:02:14.1]} 15. Nc4 {[%clk 0:02:49.3]}
15... Nb6 {[%clk 0:01:58.1]} 16. Ne5 {[%clk 0:02:47.9]} 16... Be6 {[%clk
0:01:57.5]} 17. O-O {[%clk 0:02:45.4]} 17... Rad8 {[%clk 0:01:14.9]} 18. a4
{[%clk 0:02:42.9]} 18... Qf6 {[%clk 0:01:13.5]} 19. a5 {[%clk 0:02:42.7]} 19...
Nc4 {[%clk 0:01:12.9]} 20. Nxc4 {[%clk 0:02:35.5]} 20... Bxc4 {[%clk 0:01:12.3]}
21. Rfc1 {[%clk 0:02:35.9]} 21... Bd3 {[%clk 0:01:11.6]} 22. Qb3+ {[%clk
0:02:34.6]} 22... Qf7 {[%clk 0:01:07.1]} 23. Qxf7+ {[%clk 0:02:34.4]} 23... Kxf7
{[%clk 0:01:08]} 24. b4 {[%clk 0:02:32.8]} 24... f4 {[%clk 0:00:57.9]} 25. Na4
{[%clk 0:02:32]} 25... Re7 {[%clk 0:00:43.6]} 26. Nc5 {[%clk 0:02:32.2]} 26...
Bb5 {[%clk 0:00:42.7]} 27. Ra3 {[%clk 0:02:28.1]} 27... Rd5 {[%clk 0:00:41.5]}
28. Re1 {[%clk 0:02:16]} 28... h5 {[%clk 0:00:38.4]} 29. h4 {[%clk 0:02:02.1]}
29... Kf6 {[%clk 0:00:30.1]} 30. Kh2 {[%clk 0:01:41.1]} 30... Kf5 {[%clk
0:00:29.6]} 31. exf4 {[%clk 0:01:38.7]} 31... Rxd4 {[%clk 0:00:19.5]} 32. Rg3
{[%clk 0:01:39]} 32... Rxb4 {[%clk 0:00:13.4]} 33. Rg5+ {[%clk 0:01:39.4]} 33...
Kxf4 {[%clk 0:00:13.7]} 34. Re3 {[%clk 0:01:38.4]} 1-0